[Event "Titled Tuesday Blitz December 06 Early 2022"]
[White "Kleiman, Jake"]
[Black "Muminova, Nafisa"]
[WhiteFideId "2020041"]
[BlackFideId "14201526"]
[WhiteElo "2547"]
[BlackElo "2258"]
[Result "1-0"]
[Round "06"]
[TimeControl "180+1"]
[Date "2022.12.07"]
[WhiteClock "0:00:47"]
[BlackClock "0:00:28"]

1. e4 {[%clk 0:03:00]}  e6 {[%clk 0:02:58]} 2. d3 {[%clk 0:03:00]}  d5 {[%clk 0:02:57]} 3. Qe2 {[%clk 0:03:01]}  Be7 {[%clk 0:02:54]} 4. Nf3 {[%clk 0:03:01]}  Nc6 {[%clk 0:02:51]} 5. g3 {[%clk 0:03:02]}  dxe4 {[%clk 0:02:51]} 6. dxe4 {[%clk 0:03:01]}  e5 {[%clk 0:02:51]} 7. Bg2 {[%clk 0:03:02]}  Nf6 {[%clk 0:02:50]} 8. c3 {[%clk 0:03:02]}  O-O {[%clk 0:02:50]} 9. O-O {[%clk 0:03:03]}  a5 {[%clk 0:02:46]} 10. Rd1 {[%clk 0:03:02]}  Qe8 {[%clk 0:02:46]} 11. a4 {[%clk 0:02:54]}  b6 {[%clk 0:02:46]} 12. Bg5 {[%clk 0:02:55]}  Ba6 {[%clk 0:02:45]} 13. Qe1 {[%clk 0:02:55]}  Ng4 {[%clk 0:02:36]} 14. Bxe7 {[%clk 0:02:47]}  Qxe7 {[%clk 0:02:37]} 15. h3 {[%clk 0:02:45]}  Nf6 {[%clk 0:02:36]} 16. Na3 {[%clk 0:02:40]}  Rad8 {[%clk 0:02:25]} 17. Qe3 {[%clk 0:02:35]}  Nd7 {[%clk 0:02:20]} 18. Bf1 {[%clk 0:02:29]}  Bxf1 {[%clk 0:02:16]} 19. Kxf1 {[%clk 0:02:29]}  Nc5 {[%clk 0:02:16]} 20. Qe2 {[%clk 0:01:53]}  Qe6 {[%clk 0:01:48]} 21. Kg2 {[%clk 0:01:50]}  Nxa4 {[%clk 0:01:37]} 22. Rxd8 {[%clk 0:01:44]}  Rxd8 {[%clk 0:01:36]} 23. Nb5 {[%clk 0:01:40]}  Qb3 {[%clk 0:01:28]} 24. Nxc7 {[%clk 0:01:38]}  Qxb2 {[%clk 0:01:17]} 25. Qe1 {[%clk 0:01:02]}  Nxc3 {[%clk 0:01:11]} 26. Rc1 {[%clk 0:01:02]}  Rd3 {[%clk 0:01:06]} 27. Nd5 {[%clk 0:00:52]}  Rxf3 {[%clk 0:00:44]} 28. Kxf3 {[%clk 0:00:53]}  Nd4+ {[%clk 0:00:44]} 29. Kg2 {[%clk 0:00:53]}  Qe2 {[%clk 0:00:28]} 30. Rxc3 {[%clk 0:00:47]} 1-0


[Site "https://www.chess.com"]

[Event "Titled Tuesday Blitz December 06 Early 2022"]
[White "Koellner, Ruben Gideon"]
[Black "Sadilek, Peter"]
[WhiteFideId "12993093"]
[BlackFideId "1616439"]
[WhiteElo "2303"]
[BlackElo "2227"]
[Result "1-0"]
[Round "06"]
[TimeControl "180+1"]
[Date "2022.12.07"]
[WhiteClock "0:00:21"]
[BlackClock "0:00:13"]

1. d4 {[%clk 0:03:00]}  Nf6 {[%clk 0:02:59]} 2. Bg5 {[%clk 0:03:00]}  Ne4 {[%clk 0:02:58]} 3. Bf4 {[%clk 0:03:00]}  d6 {[%clk 0:02:59]} 4. f3 {[%clk 0:03:00]}  Nf6 {[%clk 0:03:00]} 5. e4 {[%clk 0:03:00]}  Nbd7 {[%clk 0:03:00]} 6. Nc3 {[%clk 0:02:59]}  e5 {[%clk 0:03:01]} 7. Be3 {[%clk 0:02:58]}  Be7 {[%clk 0:03:02]} 8. Qd2 {[%clk 0:02:58]}  c6 {[%clk 0:03:02]} 9. Nge2 {[%clk 0:02:58]}  O-O {[%clk 0:03:02]} 10. O-O-O {[%clk 0:02:59]}  b5 {[%clk 0:03:03]} 11. Kb1 {[%clk 0:02:57]}  Qa5 {[%clk 0:02:26]} 12. Nd5 {[%clk 0:02:46]}  Qd8 {[%clk 0:02:17]} 13. Nxe7+ {[%clk 0:02:46]}  Qxe7 {[%clk 0:02:18]} 14. g4 {[%clk 0:02:44]}  Nb6 {[%clk 0:02:13]} 15. Ng3 {[%clk 0:02:41]}  Be6 {[%clk 0:02:08]} 16. Nf5 {[%clk 0:02:39]}  Bxf5 {[%clk 0:02:06]} 17. gxf5 {[%clk 0:02:40]}  Kh8 {[%clk 0:01:56]} 18. Rg1 {[%clk 0:02:40]}  Rfd8 {[%clk 0:01:49]} 19. Qg2 {[%clk 0:02:20]}  Rg8 {[%clk 0:01:45]} 20. Qf2 {[%clk 0:02:06]}  exd4 {[%clk 0:01:42]} 21. Bxd4 {[%clk 0:02:06]}  c5 {[%clk 0:01:42]} 22. Bc3 {[%clk 0:02:02]}  b4 {[%clk 0:01:41]} 23. Bd2 {[%clk 0:02:02]}  Rad8 {[%clk 0:01:34]} 24. Bf4 {[%clk 0:01:52]}  d5 {[%clk 0:01:31]} 25. e5 {[%clk 0:01:49]}  Nh5 {[%clk 0:01:32]} 26. Bg5 {[%clk 0:01:48]}  f6 {[%clk 0:01:28]} 27. exf6 {[%clk 0:01:34]}  Nxf6 {[%clk 0:01:21]} 28. Re1 {[%clk 0:01:30]}  Qf7 {[%clk 0:01:22]} 29. Re6 {[%clk 0:01:26]}  d4 {[%clk 0:01:21]} 30. Qh4 {[%clk 0:01:21]}  Nbd5 {[%clk 0:01:20]} 31. Bc4 {[%clk 0:01:19]}  Rde8 {[%clk 0:01:04]} 32. Rge1 {[%clk 0:01:01]}  Rxe6 {[%clk 0:00:46]} 33. fxe6 {[%clk 0:00:59]}  Qg6 {[%clk 0:00:42]} 34. Bxf6 {[%clk 0:00:51]}  Nxf6 {[%clk 0:00:32]} 35. e7 {[%clk 0:00:50]}  Rb8 {[%clk 0:00:20]} 36. Qf4 {[%clk 0:00:34]}  Rc8 {[%clk 0:00:15]} 37. Qd6 {[%clk 0:00:27]}  Re8 {[%clk 0:00:12]} 38. Bb5 {[%clk 0:00:25]}  d3 {[%clk 0:00:11]} 39. cxd3 {[%clk 0:00:20]}  h6 {[%clk 0:00:10]} 40. Bxe8 {[%clk 0:00:19]}  Qxe8 {[%clk 0:00:10]} 41. Qd8 {[%clk 0:00:20]}  Kg8 {[%clk 0:00:11]} 42. Qxe8+ {[%clk 0:00:19]}  Nxe8 {[%clk 0:00:12]} 43. Re5 {[%clk 0:00:19]}  Kf7 {[%clk 0:00:12]} 44. Rxc5 {[%clk 0:00:20]}  Kxe7 {[%clk 0:00:13]} 45. Rc4 {[%clk 0:00:20]}  a5 {[%clk 0:00:13]} 46. Rc5 {[%clk 0:00:21]} 1-0


[Site "https://www.chess.com"]

[Event "Titled Tuesday Blitz December 06 Early 2022"]
[White "Kollars, Dmitrij"]
[Black "Gatterer, Florian"]
[WhiteFideId "12909572"]
[BlackFideId "811688"]
[WhiteElo "2584"]
[BlackElo "2218"]
[Result "1-0"]
[Round "06"]
[TimeControl "180+1"]
[Date "2022.12.07"]
[WhiteClock "0:01:17"]
[BlackClock "0:00:33"]

1. e4 {[%clk 0:02:58]}  c6 {[%clk 0:02:57]} 2. d4 {[%clk 0:02:36]}  d5 {[%clk 0:02:57]} 3. e5 {[%clk 0:02:36]}  Bf5 {[%clk 0:02:57]} 4. Nf3 {[%clk 0:02:33]}  e6 {[%clk 0:02:57]} 5. Be2 {[%clk 0:02:32]}  Nd7 {[%clk 0:02:57]} 6. O-O {[%clk 0:02:30]}  Ne7 {[%clk 0:02:58]} 7. c3 {[%clk 0:02:28]}  h6 {[%clk 0:02:58]} 8. a4 {[%clk 0:02:25]}  a5 {[%clk 0:02:57]} 9. Na3 {[%clk 0:02:17]}  g5 {[%clk 0:02:57]} 10. Nc2 {[%clk 0:02:06]}  Bg7 {[%clk 0:02:56]} 11. Ne3 {[%clk 0:02:00]}  Bg6 {[%clk 0:02:52]} 12. Ne1 {[%clk 0:01:54]}  c5 {[%clk 0:02:52]} 13. Bb5 {[%clk 0:01:47]}  Nc6 {[%clk 0:02:49]} 14. b3 {[%clk 0:01:40]}  cxd4 {[%clk 0:02:22]} 15. cxd4 {[%clk 0:01:41]}  O-O {[%clk 0:02:18]} 16. Ba3 {[%clk 0:01:39]}  Nb4 {[%clk 0:02:18]} 17. Nd3 {[%clk 0:01:35]}  Nxd3 {[%clk 0:01:42]} 18. Bxd3 {[%clk 0:01:36]}  Bxd3 {[%clk 0:01:36]} 19. Qxd3 {[%clk 0:01:25]}  Re8 {[%clk 0:01:33]} 20. f4 {[%clk 0:01:25]}  Bf8 {[%clk 0:01:27]} 21. Bxf8 {[%clk 0:01:24]}  Nxf8 {[%clk 0:01:13]} 22. f5 {[%clk 0:01:19]}  f6 {[%clk 0:01:14]} 23. Ng4 {[%clk 0:01:18]}  fxe5 {[%clk 0:01:02]} 24. dxe5 {[%clk 0:01:19]}  exf5 {[%clk 0:00:35]} 25. Nxh6+ {[%clk 0:01:17]}  Kh8 {[%clk 0:00:33]} 26. Nf7+ {[%clk 0:01:17]} 1-0


[Site "https://www.chess.com"]

[Event "Titled Tuesday Blitz December 06 Early 2022"]
[White "Le, Tuan Minh"]
[Black "Yilmaz, Mustafa"]
[WhiteFideId "12401153"]
[BlackFideId "6302718"]
[WhiteElo "2530"]
[BlackElo "2564"]
[Result "1-0"]
[Round "06"]
[TimeControl "180+1"]
[Date "2022.12.06"]
[WhiteClock "0:02:09"]
[BlackClock "0:00:23"]

1. d4 {[%clk 0:03:00]}  Nf6 {[%clk 0:02:58]} 2. Nf3 {[%clk 0:03:01]}  d5 {[%clk 0:02:57]} 3. Bf4 {[%clk 0:03:01]}  c5 {[%clk 0:02:51]} 4. c3 {[%clk 0:03:01]}  e6 {[%clk 0:02:49]} 5. e3 {[%clk 0:03:01]}  Bd6 {[%clk 0:02:48]} 6. Nbd2 {[%clk 0:03:01]}  O-O {[%clk 0:02:35]} 7. Bd3 {[%clk 0:03:01]}  Bxf4 {[%clk 0:02:35]} 8. exf4 {[%clk 0:03:02]}  Qc7 {[%clk 0:02:34]} 9. g3 {[%clk 0:03:00]}  cxd4 {[%clk 0:02:32]} 10. cxd4 {[%clk 0:02:58]}  Qb6 {[%clk 0:02:32]} 11. Qb3 {[%clk 0:02:51]}  Qxb3 {[%clk 0:02:11]} 12. Nxb3 {[%clk 0:02:51]}  Bd7 {[%clk 0:02:08]} 13. Nc5 {[%clk 0:02:41]}  Bc6 {[%clk 0:01:45]} 14. Rc1 {[%clk 0:02:39]}  b6 {[%clk 0:01:36]} 15. Na6 {[%clk 0:02:39]}  Rc8 {[%clk 0:01:07]} 16. Ke2 {[%clk 0:02:30]}  Nbd7 {[%clk 0:00:47]} 17. Rc2 {[%clk 0:02:26]}  Ne8 {[%clk 0:00:46]} 18. Rhc1 {[%clk 0:02:26]}  Bb7 {[%clk 0:00:45]} 19. Nc7 {[%clk 0:02:21]}  Nc5 {[%clk 0:00:23]} 20. Nxa8 {[%clk 0:02:09]} 1-0


[Site "https://www.chess.com"]

[Event "Titled Tuesday Blitz December 06 Early 2022"]
[White "Madaminov, Mukhiddin"]
[Black "Alex_Sahakyan2006"]
[WhiteFideId "14210703"]
[WhiteElo "2333"]
[BlackElo "2586"]
[Result "1-0"]
[Round "06"]
[TimeControl "180+1"]
[Date "2022.12.07"]
[WhiteClock "0:00:30"]
[BlackClock "0:00:09"]

1. d4 {[%clk 0:02:41]}  g6 {[%clk 0:02:58]} 2. Nc3 {[%clk 0:02:34]}  Bg7 {[%clk 0:02:58]} 3. e4 {[%clk 0:02:33]}  c6 {[%clk 0:02:57]} 4. Bc4 {[%clk 0:02:30]}  d6 {[%clk 0:02:50]} 5. Nf3 {[%clk 0:02:27]}  Nf6 {[%clk 0:02:50]} 6. e5 {[%clk 0:02:23]}  dxe5 {[%clk 0:02:48]} 7. Nxe5 {[%clk 0:02:20]}  O-O {[%clk 0:02:47]} 8. O-O {[%clk 0:02:20]}  Nbd7 {[%clk 0:02:45]} 9. Qe2 {[%clk 0:02:18]}  Nb6 {[%clk 0:02:31]} 10. Bb3 {[%clk 0:02:15]}  Qxd4 {[%clk 0:02:27]} 11. Rd1 {[%clk 0:02:15]}  Qh4 {[%clk 0:02:24]} 12. Nxf7 {[%clk 0:01:25]}  Ng4 {[%clk 0:01:34]} 13. Bf4 {[%clk 0:01:15]}  e6 {[%clk 0:01:14]} 14. Bg3 {[%clk 0:01:12]}  Qf6 {[%clk 0:01:09]} 15. Qxg4 {[%clk 0:01:08]}  Qxf7 {[%clk 0:00:57]} 16. Ne4 {[%clk 0:00:53]}  Nd5 {[%clk 0:00:47]} 17. Bd6 {[%clk 0:00:53]}  Qf5 {[%clk 0:00:30]} 18. Qxf5 {[%clk 0:00:46]}  gxf5 {[%clk 0:00:22]} 19. Bxf8 {[%clk 0:00:46]}  Kxf8 {[%clk 0:00:23]} 20. Nd6 {[%clk 0:00:36]}  Bxb2 {[%clk 0:00:23]} 21. Rab1 {[%clk 0:00:27]}  Nc3 {[%clk 0:00:17]} 22. Nxc8 {[%clk 0:00:28]}  Rxc8 {[%clk 0:00:15]} 23. Bxe6 {[%clk 0:00:28]}  Re8 {[%clk 0:00:15]} 24. Bxf5 {[%clk 0:00:29]}  Nxd1 {[%clk 0:00:15]} 25. Rxd1 {[%clk 0:00:29]}  Re7 {[%clk 0:00:14]} 26. g3 {[%clk 0:00:28]}  c5 {[%clk 0:00:14]} 27. Kg2 {[%clk 0:00:29]}  Bd4 {[%clk 0:00:15]} 28. Bd3 {[%clk 0:00:28]}  b6 {[%clk 0:00:13]} 29. a4 {[%clk 0:00:29]}  Kg7 {[%clk 0:00:13]} 30. f4 {[%clk 0:00:29]}  h6 {[%clk 0:00:13]} 31. Kf3 {[%clk 0:00:30]}  h5 {[%clk 0:00:12]} 32. Rb1 {[%clk 0:00:27]}  Re3+ {[%clk 0:00:12]} 33. Kg2 {[%clk 0:00:28]}  Bc3 {[%clk 0:00:11]} 34. Rb3 {[%clk 0:00:26]}  Be1 {[%clk 0:00:11]} 35. Kh3 {[%clk 0:00:24]}  Ba5 {[%clk 0:00:05]} 36. Rb1 {[%clk 0:00:24]}  Bc3 {[%clk 0:00:05]} 37. Rd1 {[%clk 0:00:24]}  Bd4 {[%clk 0:00:05]} 38. Rd2 {[%clk 0:00:23]}  Kh6 {[%clk 0:00:05]} 39. Re2 {[%clk 0:00:21]}  Rxe2 {[%clk 0:00:05]} 40. Bxe2 {[%clk 0:00:22]}  Kg6 {[%clk 0:00:06]} 41. Kh4 {[%clk 0:00:22]}  Bf6+ {[%clk 0:00:06]} 42. Kh3 {[%clk 0:00:22]}  Bd4 {[%clk 0:00:07]} 43. Kg2 {[%clk 0:00:23]}  Bf6 {[%clk 0:00:07]} 44. Kf3 {[%clk 0:00:23]}  Bd4 {[%clk 0:00:07]} 45. h3 {[%clk 0:00:23]}  Kf6 {[%clk 0:00:06]} 46. Bb5 {[%clk 0:00:23]}  h4 {[%clk 0:00:06]} 47. g4 {[%clk 0:00:23]}  Bc3 {[%clk 0:00:06]} 48. g5+ {[%clk 0:00:24]}  Kg7 {[%clk 0:00:03]} 49. Bd3 {[%clk 0:00:24]}  Be1 {[%clk 0:00:03]} 50. Kg4 {[%clk 0:00:24]}  Kf7 {[%clk 0:00:03]} 51. f5 {[%clk 0:00:25]}  Kg7 {[%clk 0:00:03]} 52. f6+ {[%clk 0:00:25]}  Kf8 {[%clk 0:00:04]} 53. Kf5 {[%clk 0:00:24]}  Bc3 {[%clk 0:00:04]} 54. g6 {[%clk 0:00:25]}  Kg8 {[%clk 0:00:05]} 55. Bc4+ {[%clk 0:00:25]}  Kf8 {[%clk 0:00:05]} 56. g7+ {[%clk 0:00:26]}  Ke8 {[%clk 0:00:05]} 57. g8=Q+ {[%clk 0:00:26]}  Kd7 {[%clk 0:00:06]} 58. Qd5+ {[%clk 0:00:26]}  Kc7 {[%clk 0:00:07]} 59. f7 {[%clk 0:00:27]}  Bg7 {[%clk 0:00:07]} 60. Bb5 {[%clk 0:00:28]}  Bf8 {[%clk 0:00:08]} 61. Qd7+ {[%clk 0:00:28]}  Kb8 {[%clk 0:00:08]} 62. Bc6 {[%clk 0:00:29]}  a5 {[%clk 0:00:09]} 63. Qb7# {[%clk 0:00:30]} 1-0


[Site "https://www.chess.com"]

[Event "Titled Tuesday Blitz December 06 Early 2022"]
[White "Matveeva, Olga"]
[Black "sabkeIXO"]
[WhiteFideId "24107018"]
[WhiteElo "2056"]
[BlackElo "2494"]
[Result "1/2-1/2"]
[Round "06"]
[TimeControl "180+1"]
[Date "2022.12.07"]
[WhiteClock "0:00:08"]
[BlackClock "0:00:43"]

1. d4 {[%clk 0:03:00]}  Nf6 {[%clk 0:02:59]} 2. c4 {[%clk 0:03:00]}  g6 {[%clk 0:02:59]} 3. g3 {[%clk 0:03:01]}  Bg7 {[%clk 0:02:59]} 4. Bg2 {[%clk 0:03:01]}  d6 {[%clk 0:02:59]} 5. Nf3 {[%clk 0:03:02]}  O-O {[%clk 0:02:59]} 6. O-O {[%clk 0:03:02]}  Nc6 {[%clk 0:02:58]} 7. Nc3 {[%clk 0:03:03]}  e5 {[%clk 0:02:58]} 8. d5 {[%clk 0:03:00]}  Nb8 {[%clk 0:02:58]} 9. e4 {[%clk 0:03:00]}  a5 {[%clk 0:02:58]} 10. Ne1 {[%clk 0:02:59]}  Na6 {[%clk 0:02:59]} 11. Nd3 {[%clk 0:02:59]}  Nd7 {[%clk 0:02:58]} 12. f4 {[%clk 0:02:50]}  exf4 {[%clk 0:02:55]} 13. Bxf4 {[%clk 0:02:49]}  b6 {[%clk 0:02:53]} 14. Kh1 {[%clk 0:02:48]}  Nac5 {[%clk 0:02:52]} 15. Rc1 {[%clk 0:02:32]}  Ba6 {[%clk 0:02:50]} 16. b3 {[%clk 0:02:26]}  Nxd3 {[%clk 0:02:41]} 17. Qxd3 {[%clk 0:02:26]}  Ne5 {[%clk 0:02:41]} 18. Bxe5 {[%clk 0:02:20]}  Bxe5 {[%clk 0:02:41]} 19. Nb5 {[%clk 0:02:19]}  Qd7 {[%clk 0:02:08]} 20. Nd4 {[%clk 0:02:09]}  Rae8 {[%clk 0:01:59]} 21. Nc6 {[%clk 0:02:07]}  Bg7 {[%clk 0:01:57]} 22. Rf2 {[%clk 0:02:02]}  Bb7 {[%clk 0:01:47]} 23. Rcf1 {[%clk 0:01:55]}  Bxc6 {[%clk 0:01:44]} 24. dxc6 {[%clk 0:01:55]}  Qxc6 {[%clk 0:01:44]} 25. e5 {[%clk 0:01:55]}  Qd7 {[%clk 0:01:39]} 26. exd6 {[%clk 0:01:52]}  Qxd6 {[%clk 0:01:38]} 27. Qxd6 {[%clk 0:01:50]}  cxd6 {[%clk 0:01:39]} 28. Bd5 {[%clk 0:01:50]}  Re7 {[%clk 0:01:38]} 29. Kg2 {[%clk 0:01:47]}  Bd4 {[%clk 0:01:35]} 30. Rd2 {[%clk 0:01:42]}  Be5 {[%clk 0:01:32]} 31. g4 {[%clk 0:01:40]}  Kg7 {[%clk 0:01:32]} 32. h3 {[%clk 0:01:32]}  f6 {[%clk 0:01:31]} 33. Re2 {[%clk 0:01:27]}  Rb8 {[%clk 0:01:30]} 34. a4 {[%clk 0:01:25]}  Rh8 {[%clk 0:01:29]} 35. Kf3 {[%clk 0:01:19]}  h5 {[%clk 0:01:28]} 36. gxh5 {[%clk 0:01:10]}  Rxh5 {[%clk 0:01:29]} 37. Rh1 {[%clk 0:01:05]}  Re8 {[%clk 0:01:25]} 38. Rg2 {[%clk 0:01:01]}  f5 {[%clk 0:01:21]} 39. Kf2 {[%clk 0:00:43]}  Reh8 {[%clk 0:01:19]} 40. Rb1 {[%clk 0:00:16]}  Rxh3 {[%clk 0:01:13]} 41. b4 {[%clk 0:00:16]}  axb4 {[%clk 0:01:13]} 42. Rxb4 {[%clk 0:00:16]}  Rc3 {[%clk 0:01:09]} 43. a5 {[%clk 0:00:15]}  Rb8 {[%clk 0:01:03]} 44. axb6 {[%clk 0:00:14]}  Rxb6 {[%clk 0:01:01]} 45. Rxb6 {[%clk 0:00:13]}  Bd4+ {[%clk 0:01:01]} 46. Ke2 {[%clk 0:00:13]}  Bxb6 {[%clk 0:01:02]} 47. Kd2 {[%clk 0:00:11]}  Ra3 {[%clk 0:01:01]} 48. Re2 {[%clk 0:00:10]}  Ra2+ {[%clk 0:01:00]} 49. Kd3 {[%clk 0:00:10]}  Rxe2 {[%clk 0:01:01]} 50. Kxe2 {[%clk 0:00:11]}  Kf6 {[%clk 0:01:02]} 51. Kf3 {[%clk 0:00:11]}  Bc5 {[%clk 0:01:02]} 52. Bc6 {[%clk 0:00:10]}  g5 {[%clk 0:01:02]} 53. Bd5 {[%clk 0:00:10]}  Ke5 {[%clk 0:01:02]} 54. Bc6 {[%clk 0:00:09]}  g4+ {[%clk 0:01:03]} 55. Kg3 {[%clk 0:00:10]}  Be3 {[%clk 0:01:02]} 56. Bd5 {[%clk 0:00:09]}  Bd2 {[%clk 0:01:03]} 57. Bc6 {[%clk 0:00:09]}  Be1+ {[%clk 0:01:03]} 58. Kg2 {[%clk 0:00:09]}  f4 {[%clk 0:01:03]} 59. Bd7 {[%clk 0:00:09]}  Kd4 {[%clk 0:00:47]} 60. Bxg4 {[%clk 0:00:08]}  Kxc4 {[%clk 0:00:48]} 61. Bf5 {[%clk 0:00:07]}  d5 {[%clk 0:00:46]} 62. Kf3 {[%clk 0:00:07]}  Bd2 {[%clk 0:00:45]} 63. Ke2 {[%clk 0:00:07]}  Be3 {[%clk 0:00:45]} 64. Bg6 {[%clk 0:00:06]}  Kd4 {[%clk 0:00:44]} 65. Bf5 {[%clk 0:00:06]}  Ke5 {[%clk 0:00:45]} 66. Bg6 {[%clk 0:00:07]}  Kf6 {[%clk 0:00:45]} 67. Bh7 {[%clk 0:00:07]}  Kg5 {[%clk 0:00:45]} 68. Bg8 {[%clk 0:00:06]}  d4 {[%clk 0:00:45]} 69. Bd5 {[%clk 0:00:06]}  Kg4 {[%clk 0:00:46]} 70. Be4 {[%clk 0:00:06]}  Kg3 {[%clk 0:00:44]} 71. Bd5 {[%clk 0:00:06]}  Kg4 {[%clk 0:00:42]} 72. Be4 {[%clk 0:00:06]}  Bc1 {[%clk 0:00:42]} 73. Bd5 {[%clk 0:00:06]}  Kf5 {[%clk 0:00:42]} 74. Bc6 {[%clk 0:00:06]}  Ke5 {[%clk 0:00:43]} 75. Bb7 {[%clk 0:00:07]}  Be3 {[%clk 0:00:42]} 76. Bc6 {[%clk 0:00:07]}  Kd6 {[%clk 0:00:42]} 77. Bb7 {[%clk 0:00:07]}  Kc5 {[%clk 0:00:42]} 78. Bc8 {[%clk 0:00:07]}  Kd5 {[%clk 0:00:42]} 79. Bd7 {[%clk 0:00:07]}  Kd6 {[%clk 0:00:41]} 80. Bc8 {[%clk 0:00:07]}  Ke5 {[%clk 0:00:41]} 81. Bb7 {[%clk 0:00:07]}  Kf5 {[%clk 0:00:41]} 82. Bc8+ {[%clk 0:00:07]}  Ke5 {[%clk 0:00:41]} 83. Bb7 {[%clk 0:00:07]}  Kd6 {[%clk 0:00:41]} 84. Bc8 {[%clk 0:00:07]}  Kc5 {[%clk 0:00:42]} 85. Bb7 {[%clk 0:00:07]}  Kc4 {[%clk 0:00:42]} 86. Be4 {[%clk 0:00:07]}  Kc3 {[%clk 0:00:43]} 87. Bf5 {[%clk 0:00:08]}  Bc1 {[%clk 0:00:43]} 88. Be4 {[%clk 0:00:07]}  Ba3 {[%clk 0:00:42]} 89. Bf5 {[%clk 0:00:08]}  Bf8 {[%clk 0:00:42]} 90. Be4 {[%clk 0:00:08]}  Bh6 {[%clk 0:00:43]} 91. Bf5 {[%clk 0:00:08]}  f3+ {[%clk 0:00:42]} 92. Kxf3 {[%clk 0:00:08]}  d3 {[%clk 0:00:43]} 93. Bxd3 {[%clk 0:00:08]} 1/2-1/2


[Site "https://www.chess.com"]

[Event "Titled Tuesday Blitz December 06 Early 2022"]
[White "Mikhailovsky, Vladimir"]
[Black "Demin, Vladimir"]
[WhiteFideId "34105414"]
[BlackFideId "4167457"]
[WhiteElo "2295"]
[BlackElo "2563"]
[Result "1-0"]
[Round "06"]
[TimeControl "180+1"]
[Date "2022.12.07"]
[WhiteClock "0:02:54"]
[BlackClock "0:02:18"]

1. e4 {[%clk 0:03:00]}  e5 {[%clk 0:02:52]} 2. Nf3 {[%clk 0:02:56]}  Nc6 {[%clk 0:02:51]} 3. Nc3 {[%clk 0:02:57]}  Nf6 {[%clk 0:02:49]} 4. Bb5 {[%clk 0:02:57]}  Bb4 {[%clk 0:02:48]} 5. O-O {[%clk 0:02:57]}  O-O {[%clk 0:02:47]} 6. d3 {[%clk 0:02:58]}  d6 {[%clk 0:02:43]} 7. Bxc6 {[%clk 0:02:58]}  bxc6 {[%clk 0:02:44]} 8. Ne2 {[%clk 0:02:59]}  h6 {[%clk 0:02:43]} 9. Ng3 {[%clk 0:02:59]}  Bg4 {[%clk 0:02:41]} 10. h3 {[%clk 0:02:59]}  Bxf3 {[%clk 0:02:41]} 11. Qxf3 {[%clk 0:03:00]}  d5 {[%clk 0:02:36]} 12. Nf5 {[%clk 0:02:57]}  dxe4 {[%clk 0:02:35]} 13. dxe4 {[%clk 0:02:56]}  Bd6 {[%clk 0:02:30]} 14. Bxh6 {[%clk 0:02:53]}  gxh6 {[%clk 0:02:28]} 15. Qg3+ {[%clk 0:02:53]}  Ng4 {[%clk 0:02:27]} 16. Qxg4+ {[%clk 0:02:53]}  Qg5 {[%clk 0:02:27]} 17. Nxh6+ {[%clk 0:02:54]}  Kh7 {[%clk 0:02:20]} 18. Qxg5 {[%clk 0:02:54]}  Rg8 {[%clk 0:02:21]} 19. Nxg8 {[%clk 0:02:53]}  Rb8 {[%clk 0:02:19]} 20. Nf6+ {[%clk 0:02:53]}  Kh8 {[%clk 0:02:18]} 21. Qh6# {[%clk 0:02:54]} 1-0


[Site "https://www.chess.com"]

[Event "Titled Tuesday Blitz December 06 Early 2022"]
[White "Miszler, Levente"]
[Black "Simonovic, Miroslav"]
[WhiteFideId "763276"]
[BlackFideId "919152"]
[WhiteElo "2176"]
[BlackElo "2057"]
[Result "1-0"]
[Round "06"]
[TimeControl "180+1"]
[Date "2022.12.07"]
[WhiteClock "0:02:07"]
[BlackClock "0:00:13"]

1. Nf3 {[%clk 0:03:00]}  c5 {[%clk 0:02:58]} 2. c4 {[%clk 0:03:00]}  Nc6 {[%clk 0:02:58]} 3. Nc3 {[%clk 0:02:58]}  e5 {[%clk 0:02:59]} 4. g3 {[%clk 0:02:58]}  g6 {[%clk 0:02:59]} 5. Bg2 {[%clk 0:02:59]}  Bg7 {[%clk 0:02:59]} 6. O-O {[%clk 0:02:59]}  Nge7 {[%clk 0:03:00]} 7. Ne1 {[%clk 0:02:57]}  O-O {[%clk 0:03:00]} 8. Nc2 {[%clk 0:02:58]}  d6 {[%clk 0:03:00]} 9. Ne3 {[%clk 0:02:58]}  f5 {[%clk 0:03:00]} 10. Ned5 {[%clk 0:02:58]}  Be6 {[%clk 0:02:59]} 11. a3 {[%clk 0:02:57]}  e4 {[%clk 0:02:51]} 12. d3 {[%clk 0:02:56]}  exd3 {[%clk 0:02:40]} 13. exd3 {[%clk 0:02:57]}  Nd4 {[%clk 0:02:36]} 14. Re1 {[%clk 0:02:54]}  Nxd5 {[%clk 0:02:32]} 15. Nxd5 {[%clk 0:02:55]}  Re8 {[%clk 0:02:21]} 16. h4 {[%clk 0:02:49]}  h6 {[%clk 0:02:12]} 17. Be3 {[%clk 0:02:49]}  Kh7 {[%clk 0:02:12]} 18. Rb1 {[%clk 0:02:49]}  a5 {[%clk 0:02:10]} 19. b4 {[%clk 0:02:49]}  axb4 {[%clk 0:02:10]} 20. axb4 {[%clk 0:02:49]}  Bxd5 {[%clk 0:02:09]} 21. Bxd5 {[%clk 0:02:49]}  cxb4 {[%clk 0:02:09]} 22. Rxb4 {[%clk 0:02:47]}  Rb8 {[%clk 0:01:55]} 23. Rxb7 {[%clk 0:02:43]}  Rxb7 {[%clk 0:01:55]} 24. Bxb7 {[%clk 0:02:44]}  Qf6 {[%clk 0:01:29]} 25. Bd5 {[%clk 0:02:44]}  g5 {[%clk 0:01:28]} 26. hxg5 {[%clk 0:02:36]}  Qe7 {[%clk 0:01:05]} 27. gxh6 {[%clk 0:02:23]}  Bxh6 {[%clk 0:01:03]} 28. Qh5 {[%clk 0:02:22]}  f4 {[%clk 0:00:53]} 29. Be4+ {[%clk 0:02:14]}  Kg8 {[%clk 0:00:35]} 30. Bxd4 {[%clk 0:02:11]}  Rf8 {[%clk 0:00:13]} 31. Bd5+ {[%clk 0:02:07]} 1-0


[Site "https://www.chess.com"]

[Event "Titled Tuesday Blitz December 06 Early 2022"]
[White "Nugumanov, Bakhtiyar"]
[Black "Manukyan, Sargis A."]
[WhiteFideId "13701797"]
[BlackFideId "13303970"]
[WhiteElo "2287"]
[BlackElo "2187"]
[Result "0-1"]
[Round "06"]
[TimeControl "180+1"]
[Date "2022.12.07"]
[WhiteClock "0:01:20"]
[BlackClock "0:01:56"]

1. e4 {[%clk 0:03:00]}  e6 {[%clk 0:02:59]} 2. d4 {[%clk 0:02:59]}  d5 {[%clk 0:03:00]} 3. e5 {[%clk 0:03:00]}  c5 {[%clk 0:02:58]} 4. c3 {[%clk 0:03:00]}  Nc6 {[%clk 0:02:59]} 5. Nf3 {[%clk 0:03:00]}  Nh6 {[%clk 0:02:59]} 6. a3 {[%clk 0:02:54]}  Nf5 {[%clk 0:02:58]} 7. b4 {[%clk 0:02:51]}  cxd4 {[%clk 0:02:59]} 8. cxd4 {[%clk 0:02:50]}  Bd7 {[%clk 0:02:59]} 9. Be3 {[%clk 0:02:38]}  b5 {[%clk 0:02:59]} 10. Bxb5 {[%clk 0:02:19]}  Nxe5 {[%clk 0:02:59]} 11. Bxd7+ {[%clk 0:02:03]}  Nxd7 {[%clk 0:03:00]} 12. O-O {[%clk 0:02:03]}  Bd6 {[%clk 0:02:58]} 13. Nbd2 {[%clk 0:01:55]}  O-O {[%clk 0:02:56]} 14. Nb3 {[%clk 0:01:56]}  Nb6 {[%clk 0:02:53]} 15. Qd3 {[%clk 0:01:47]}  Nc4 {[%clk 0:02:52]} 16. Nfd2 {[%clk 0:01:39]}  Rc8 {[%clk 0:02:28]} 17. Nc5 {[%clk 0:01:32]}  Qh4 {[%clk 0:02:26]} 18. g3 {[%clk 0:01:28]}  Qh3 {[%clk 0:02:12]} 19. Nxc4 {[%clk 0:01:20]}  dxc4 {[%clk 0:02:07]} 20. Qxc4 {[%clk 0:01:21]}  Nh4 {[%clk 0:01:58]} 21. Qe2 {[%clk 0:01:20]}  Qg2# {[%clk 0:01:56]} 0-1


[Site "https://www.chess.com"]